fUSD/lending_fUSD_20250322
["ID","MTS","AMOUNT","RATE_DAILY","PERIOD"]
[356535172,1742633433591,-500.0,0.00046575,120]
[356535173,1742633433600,-500.0,0.00046575,120]
[356535174,1742633433609,-500.0,0.00046575,120]
[356535175,1742633433619,-500.0,0.00046575,120]
[356535176,1742633433629,-500.0,0.00046575,120]
[356535177,1742633433638,-869.79,0.00046575,120]
[356535178,1742633433648,-500.0,0.00046575,120]
[356535179,1742633433657,-502.58,0.00046575,120]
[356535180,1742633433667,-500.0,0.00046575,120]
[356535181,1742633433676,-500.0,0.00046575,120]
[356535182,1742633433688,-500.0,0.00046575,120]
[356535183,1742633433698,-500.0,0.00046575,120]
[356535184,1742633433707,-500.0,0.00046575,120]
[356535185,1742633433716,-500.0,0.00046575,120]
[356535186,1742633433726,-500.0,0.00046575,120]
[356535187,1742633433736,-500.0,0.00046575,120]
[356535188,1742633433748,-519.84307444,0.00046575,120]
[356535189,1742633433757,-500.0,0.00046575,2]
[356535190,1742633433766,-1100.98,0.00046575,60]
[356535191,1742633433777,-572.82,0.00046575,120]
[356535192,1742633433788,-500.0,0.00046575,120]
[356535193,1742633433797,-500.0,0.00046575,120]
[356535194,1742633433807,-500.0,0.00046575,120]
[356535195,1742633433817,-500.0,0.00046575,120]
[356535196,1742633433826,-500.0,0.00046575,120]
[356535197,1742633433836,-1093.47,0.00046575,120]
[356535198,1742633433846,-524.29,0.00046575,120]
[356535199,1742633433855,-500.0,0.00046575,120]
[356535200,1742633433865,-574.29,0.00046575,120]
[356535201,1742633433874,-500.0,0.00046575,120]
[356535202,1742633433884,-893.96,0.00046575,120]
[356535203,1742633433893,-500.0,0.00046575,120]
[356535204,1742633433903,-667.5,0.00046575,120]
[356535205,1742633433913,-267.09009621,0.00046575,120]
[356535206,1742633433923,-500.0,0.00046575,120]
[356535207,1742633433934,-500.0,0.00046575,120]
[356535208,1742633433944,-769.82,0.00046575,120]
[356535209,1742633433954,-681.49,0.00046575,2]
[356535210,1742633433964,-539.05,0.00046575,120]
[356535211,1742633433974,-500.0,0.00046575,120]
[356535212,1742633433984,-608.02013724,0.00046575,120]
[356535213,1742633433994,-583.98,0.00046575,120]
[356535214,1742633434003,-501.39,0.00046575,120]
[356535215,1742633434013,-500.0,0.00046575,120]
[356535216,1742633434023,-364.58031795,0.00046575,120]
[356535217,1742633434032,-500.0,0.00046575,120]
[356535218,1742633434041,-635.06,0.00046575,120]
[356535219,1742633434051,-790.13,0.00046575,120]
[356535220,1742633434060,-1683.79,0.00046575,120]
[356535221,1742633434071,-500.0,0.00046575,120]
[356535222,1742633434080,-500.0,0.00046575,120]
[356535223,1742633434090,-500.0,0.00046575,120]
[356535224,1742633434099,-500.0,0.00046575,120]
[356535225,1742633434108,-500.0,0.00046575,120]
[356535226,1742633434119,-500.0,0.00046575,120]
[356535227,1742633434129,-500.0,0.00046575,120]
[356535228,1742633434139,-500.0,0.00046575,120]
[356535229,1742633434149,-500.0,0.00046575,120]
[356535230,1742633434158,-630.78129794,0.00046575,120]
[356535231,1742633434167,-666.98,0.00046575,120]
[356535232,1742633434176,-751.0,0.00046575,120]
[356535233,1742633434185,-500.0,0.00046575,120]
[356535234,1742633434195,-500.0,0.00046575,120]
[356535235,1742633434204,-500.0,0.00046575,120]
[356535236,1742633434214,-500.0,0.00046575,30]
[356535237,1742633434223,-500.0,0.00046575,120]
[356535238,1742633434232,-500.0,0.00046575,120]
[356535239,1742633434242,-1729.81,0.00046575,120]
[356535240,1742633434251,-500.0,0.00046575,120]
[356535241,1742633434261,-500.0,0.00046575,120]
[356535242,1742633434271,-500.0,0.00046575,120]
[356535243,1742633434280,-500.0,0.00046575,120]
[356535244,1742633434289,-500.0,0.00046575,120]
[356535245,1742633434299,-500.0,0.00046575,120]
[356535246,1742633434309,-151.0,0.00046575,14]
[356535247,1742633434318,-500.0,0.00046575,120]
[356535248,1742633434327,-500.0,0.00046575,120]
[356535249,1742633434337,-500.0,0.00046575,120]
[356535250,1742633434347,-864.94,0.00046575,120]
[356535251,1742633434356,-500.0,0.00046575,120]
[356535252,1742633434366,-747.47,0.00046575,120]
[356535253,1742633434375,-500.0,0.00046575,120]
[356535254,1742633434384,-500.0,0.00046575,120]
[356535255,1742633434394,-500.0,0.00046575,120]
[356535256,1742633434403,-500.0,0.00046575,120]
[356535257,1742633434412,-500.0,0.00046575,120]
[356535258,1742633434421,-647.92,0.00046575,120]
[356535259,1742633434430,-594.9,0.00046575,120]
[356535260,1742633434440,-500.0,0.00046575,120]
[356535261,1742633434449,-759.57,0.00046575,120]
[356535262,1742633434458,-500.0,0.00046575,120]
[356535263,1742633434467,-1357.7,0.00046575,120]
[356535264,1742633434477,-500.0,0.00046575,120]
[356535265,1742633434486,-500.0,0.00046575,120]
[356535266,1742633434495,-500.0,0.00046575,120]
[356535267,1742633434504,-500.0,0.00046575,120]
[356535268,1742633434513,-500.0,0.00046575,120]
[356535269,1742633434523,-892.95,0.00046575,120]
[356535270,1742633434531,-500.0,0.00046575,120]
[356535271,1742633434541,-2395.44,0.00046575,120]
[356535272,1742633434551,-608.18,0.00046575,120]
[356535273,1742633434560,-500.0,0.00046575,120]
[356535274,1742633434570,-500.0,0.00046575,120]
[356535275,1742633434579,-976.5,0.00046575,120]
[356535276,1742633434589,-517.53,0.00046575,120]
[356535277,1742633434599,-501.01,0.00046575,120]
[356535278,1742633434608,-500.0,0.00046575,120]
[356535279,1742633434617,-901.86,0.00046575,120]
[356535280,1742633434627,-500.0,0.00046575,120]
[356535281,1742633434636,-500.0,0.00046575,120]
[356535282,1742633434645,-790.58,0.00046575,120]
[356535283,1742633434655,-500.0,0.00046575,120]
[356535284,1742633434665,-663.46,0.00046575,120]
[356535285,1742633434675,-500.0,0.00046575,120]
[356535286,1742633434687,-564.66,0.00046575,120]
[356535287,1742633434697,-500.0,0.00046575,120]
[356535288,1742633434707,-963.29,0.00046575,120]
[356535289,1742633434716,-500.0,0.00046575,120]
[356535290,1742633434727,-500.0,0.00046575,120]
[356535291,1742633434737,-500.0,0.00046575,120]
[356535292,1742633434746,-173.10770526,0.00046575,120]
[356535293,1742633434756,-500.0,0.00046575,120]
[356535294,1742633434767,-676.11,0.00046575,120]
[356535295,1742633434777,-807.49,0.00046575,120]
[356535296,1742633434786,-500.0,0.00046575,120]
[356535297,1742633434795,-500.0,0.00046575,120]
[356535298,1742633434804,-1103.04,0.00046575,120]
[356535299,1742633434813,-500.0,0.00046575,120]
[356535300,1742633434823,-638.36,0.00046575,120]
[356535301,1742633434833,-500.0,0.00046575,120]
[356535302,1742633434842,-500.0,0.00046575,120]
[356535303,1742633434852,-500.0,0.00046575,120]
[356535304,1742633434861,-500.0,0.00046575,120]
[356535305,1742633434870,-999.55,0.00046575,120]
[356535306,1742633434880,-767.75,0.00046575,120]
[356535307,1742633434889,-500.0,0.00046575,120]
[356535308,1742633434899,-500.0,0.00046575,120]
[356535309,1742633434909,-500.0,0.00046575,120]
[356535310,1742633434918,-500.0,0.00046575,120]
[356535311,1742633434927,-500.0,0.00046575,120]
[356535312,1742633434938,-2066.0,0.00046575,120]
[356535313,1742633434947,-1514.58,0.00046575,120]
[356535314,1742633434956,-686.61,0.00046575,120]
[356535315,1742633434966,-350.0,0.00046575,120]
[356535316,1742633434979,-645.31,0.00046575,120]
[356535317,1742633434988,-1214.05,0.00046575,120]
[356535318,1742633434998,-500.0,0.00046575,120]
[356535319,1742633435008,-1031.86,0.00046575,120]
[356535320,1742633435018,-502.64,0.00046575,120]
[356535321,1742633435027,-1119.41,0.00046575,120]
[356535322,1742633435036,-915.23,0.00046575,120]
[356535323,1742633435046,-1566.92,0.00046575,120]
[356535324,1742633435055,-500.0,0.00046575,120]
[356535325,1742633435064,-500.0,0.00046575,120]
[356535326,1742633435074,-500.0,0.00046575,120]
[356535327,1742633435083,-582.35,0.00046575,120]
[356535328,1742633435093,-500.0,0.00046575,120]
[356535329,1742633435102,-500.0,0.00046575,120]
[356535330,1742633435111,-500.0,0.00046575,120]
[356535331,1742633435121,-778.05,0.00046575,120]
[356535332,1742633435131,-756.43,0.00046575,120]
[356535333,1742633435141,-1071.23,0.00046575,120]
[356535334,1742633435151,-1223.59,0.00046575,120]
[356535335,1742633435160,-500.0,0.00046575,120]
[356535336,1742633435170,-588.21,0.00046575,120]
[356535337,1742633435179,-500.0,0.00046575,120]
[356535338,1742633435190,-500.0,0.00046575,120]
[356535339,1742633435199,-500.0,0.00046575,120]
[356535340,1742633435209,-613.03,0.00046575,120]
[356535341,1742633435218,-1409.4,0.00046575,120]
[356535342,1742633435228,-764.24,0.00046575,120]
[356535343,1742633435237,-594.66,0.00046575,120]
[356535344,1742633435247,-798.16,0.00046575,120]
[356535345,1742633435257,-1209.7,0.00046575,120]
[356535346,1742633435267,-500.0,0.00046575,120]
[356535347,1742633435277,-500.0,0.00046575,120]
[356535348,1742633435286,-622.36,0.00046575,120]
[356535349,1742633435296,-683.21,0.00046575,120]
[356535350,1742633435305,-500.0,0.00046575,120]
[356535351,1742633435315,-500.0,0.00046575,120]
[356535352,1742633435324,-543.85,0.00046575,120]
[356535353,1742633435333,-571.21,0.00046575,120]
[356535354,1742633435343,-527.2,0.00046575,120]
[356535355,1742633435352,-505.41,0.00046575,120]
[356535356,1742633435362,-500.0,0.00046575,120]
[356535357,1742633435371,-500.0,0.00046575,120]
[356535358,1742633435381,-1517.29,0.00046575,120]
[356535359,1742633435397,-635.99,0.00046575,120]
[356535360,1742633435410,-715.08,0.00046575,120]
[356535361,1742633435420,-500.0,0.00046575,120]
[356535362,1742633435430,-500.0,0.00046575,120]
[356535363,1742633435439,-1540.5,0.00046575,120]
[356535364,1742633435448,-500.0,0.00046575,120]
[356535365,1742633435458,-596.18,0.00046575,120]
[356535366,1742633435468,-959.79,0.00046575,120]
[356535367,1742633435477,-2312.56,0.00046575,120]
[356535368,1742633435486,-500.0,0.00046575,120]
[356535369,1742633435496,-500.0,0.00046575,120]
[356535370,1742633435506,-500.0,0.00046575,120]
[356535371,1742633435515,-1500.0,0.00046575,120]
[356535372,1742633435800,-500.0,0.00046575,120]
[356535373,1742633435816,-929.76,0.00046575,120]
[356535374,1742633435825,-500.0,0.00046575,120]
[356535375,1742633435834,-500.0,0.00046575,120]
[356535376,1742633435844,-500.0,0.00046575,120]
[356535377,1742633435854,-1617.62,0.00046575,120]
[356535378,1742633435863,-1024.46,0.00046575,120]
[356535379,1742633435873,-932.1,0.00046575,120]
[356535380,1742633435882,-500.0,0.00046575,120]
[356535381,1742633435892,-710.18,0.00046575,120]
[356535382,1742633435901,-500.0,0.00046575,120]
[356535383,1742633435911,-500.0,0.00046575,120]
[356535384,1742633435920,-158.07105326,0.00046575,120]
[356535385,1742633435930,-935.42,0.00046575,120]
[356535386,1742633435940,-500.0,0.00046575,120]
[356535387,1742633435949,-500.0,0.00046575,120]
[356535388,1742633435959,-815.78,0.00046575,120]
[356535389,1742633435969,-901.4,0.00046575,120]
[356535390,1742633435978,-500.0,0.00046575,120]
[356535391,1742633435987,-543.70947834,0.00046575,120]
[356535392,1742633435997,-584.12,0.00046575,120]
[356535393,1742633436006,-500.0,0.00046575,120]
[356535394,1742633436016,-500.0,0.00046575,120]
[356535395,1742633436026,-500.0,0.00046575,120]
[356535396,1742633436036,-1112.07,0.00046575,120]
[356535397,1742633436045,-500.0,0.00046575,120]
[356535398,1742633436055,-500.0,0.00046575,120]
[356535399,1742633436064,-1325.07,0.00046575,10]
[356535400,1742633436074,-500.0,0.00046575,120]
[356535401,1742633436083,-500.0,0.00046575,120]
[356535402,1742633436093,-500.0,0.00046575,120]
[356535403,1742633436103,-553.8,0.00046575,120]
[356535404,1742633436113,-500.0,0.00046575,120]
[356535405,1742633436122,-500.0,0.00046575,120]
[356535406,1742633436132,-500.0,0.00046575,120]
[356535407,1742633436141,-500.0,0.00046575,120]
[356535408,1742633436150,-500.0,0.00046575,120]
[356535409,1742633436159,-500.0,0.00046575,120]
[356535410,1742633436169,-1419.26,0.00046575,120]
[356535411,1742633436179,-997.35,0.00046575,120]
[356535412,1742633436189,-500.0,0.00046575,120]
[356535413,1742633436199,-500.0,0.00046575,120]
[356535414,1742633436209,-651.64,0.00046575,120]
[356535415,1742633436218,-937.36,0.00046575,120]
[356535416,1742633436228,-500.0,0.00046575,120]
[356535417,1742633436237,-1149.59,0.00046575,120]
[356535418,1742633436247,-500.0,0.00046575,120]
[356535419,1742633436257,-500.0,0.00046575,120]
[356535420,1742633436266,-500.0,0.00046575,120]
[356535421,1742633436276,-2099.87,0.00046575,120]
[356535422,1742633436285,-645.24,0.00046575,120]
[356535423,1742633436295,-500.0,0.00046575,120]
[356535424,1742633436305,-749.37,0.00046575,120]
[356535425,1742633436314,-719.55,0.00046575,120]
[356535426,1742633436323,-300.0,0.00046575,120]
[356535427,1742633436333,-1179.07,0.00046575,120]
[356535428,1742633436343,-500.0,0.00046575,120]
[356535429,1742633436352,-500.0,0.00046575,120]
[356535430,1742633436362,-500.0,0.00046575,120]
[356535431,1742633436371,-1394.13,0.00046575,120]
[356535432,1742633436380,-675.57,0.00046575,120]
[356535433,1742633436390,-500.0,0.00046575,120]
[356535434,1742633436399,-500.0,0.00046575,120]
[356535435,1742633436409,-533.43,0.00046575,120]
[356535436,1742633436418,-500.0,0.00046575,120]
[356535437,1742633436427,-500.0,0.00046575,120]
[356535438,1742633436437,-500.0,0.00046575,120]
[356535439,1742633436448,-500.0,0.00046575,120]
[356535440,1742633436458,-752.9,0.00046575,120]
[356535441,1742633436467,-738.06,0.00046575,120]
[356535442,1742633436477,-1735.78,0.00046575,120]
[356535443,1742633436487,-760.24,0.00046575,120]
[356535444,1742633436500,-859.22,0.00046575,120]
[356535445,1742633436509,-500.0,0.00046575,120]
[356535446,1742633436519,-500.0,0.00046575,120]
[356535447,1742633436529,-500.0,0.00046575,120]
[356535448,1742633436538,-963.1,0.00046575,120]
[356535449,1742633436548,-500.0,0.00046575,120]
[356535450,1742633436557,-500.0,0.00046575,120]
[356535451,1742633436566,-500.0,0.00046575,120]
[356535452,1742633436575,-713.59,0.00046575,120]
[356535453,1742633436585,-500.0,0.00046575,120]
[356535454,1742633436594,-558.0,0.00046575,120]
[356535455,1742633436603,-500.0,0.00046575,120]
[356535456,1742633436613,-500.0,0.00046575,120]
[356535457,1742633436622,-500.0,0.00046575,120]
[356535458,1742633436632,-500.0,0.00046575,120]
[356535459,1742633436642,-500.0,0.00046575,120]
[356535460,1742633436651,-500.0,0.00046575,120]
[356535461,1742633436661,-920.93,0.00046575,120]
[356535462,1742633436671,-1124.25,0.00046575,120]
[356535463,1742633436686,-553.09,0.00046575,120]
[356535464,1742633436698,-500.0,0.00046575,120]
[356535465,1742633436707,-500.0,0.00046575,120]
[356535466,1742633436716,-868.87,0.00046575,120]
[356535467,1742633436726,-500.0,0.00046575,120]
[356535468,1742633436735,-2198.1,0.00046575,120]
[356535469,1742633436745,-500.0,0.00046575,120]
[356535470,1742633436754,-500.0,0.00046575,120]
[356535471,1742633436765,-500.0,0.00046575,120]
[356535472,1742633436775,-1652.57,0.00046575,120]
[356535473,1742633436784,-554.91,0.00046575,120]
[356535474,1742633436793,-500.0,0.00046575,120]
[356535475,1742633436803,-500.0,0.00046575,120]
[356535476,1742633436812,-544.52,0.00046575,120]
[356535477,1742633436822,-500.0,0.00046575,120]
[356535478,1742633436831,-511.5,0.00046575,120]
[356535479,1742633436840,-500.0,0.00046575,60]
[356535480,1742633436850,-500.0,0.00046575,120]
[356535481,1742633436859,-506.04,0.00046575,120]
[356535482,1742633436869,-500.0,0.00046575,120]
[356535483,1742633436878,-500.0,0.00046575,120]
[356535484,1742633436887,-500.0,0.00046575,120]
[356535485,1742633436897,-500.0,0.00046575,120]
[356535486,1742633436907,-500.0,0.00046575,120]
[356535487,1742633436916,-500.0,0.00046575,120]
[356535488,1742633436925,-500.0,0.00046575,120]
[356535489,1742633436935,-500.0,0.00046575,120]
[356535490,1742633436944,-1547.41,0.00046575,120]
[356535491,1742633436953,-726.61,0.00046575,120]
[356535492,1742633436963,-64768.55,0.00046575,120]
[356535493,1742633436972,-644.83,0.00046575,120]
[356535494,1742633436982,-604.79,0.00046575,120]
[356535495,1742633436991,-699.39,0.00046575,120]
[356535496,1742633437000,-500.0,0.00046575,120]
[356535497,1742633437010,-745.46,0.00046575,120]
[356535498,1742633437019,-500.0,0.00046575,120]
[356535499,1742633437028,-726.26,0.00046575,120]
[356535500,1742633437038,-500.0,0.00046575,120]
[356535501,1742633437047,-500.0,0.00046575,120]
[356535502,1742633437056,-500.0,0.00046575,120]
[356535503,1742633437066,-500.0,0.00046575,120]
[356535504,1742633437075,-500.0,0.00046575,120]
[356535505,1742633437085,-551.05,0.00046575,120]
[356535506,1742633437094,-500.0,0.00046575,120]
[356535507,1742633437104,-1109.19,0.00046575,120]
[356535508,1742633437113,-801.36,0.00046575,120]
[356535509,1742633437123,-500.0,0.00046575,120]
[356535510,1742633437132,-732.06,0.00046575,120]
[356535511,1742633437141,-500.0,0.00046575,120]
[356535512,1742633437151,-500.0,0.00046575,120]
[356535513,1742633437160,-530.89,0.00046575,120]
[356535514,1742633437169,-2286.02,0.00046575,120]
[356535515,1742633437178,-500.0,0.00046575,120]
[356535516,1742633437189,-500.0,0.00046575,120]
[356535517,1742633437198,-590.26314695,0.00046575,120]
[356535518,1742633437207,-3143.67,0.00046575,120]
[356535519,1742633437217,-500.0,0.00046575,120]
[356535520,1742633437226,-4841.03,0.00046575,2]
[356535521,1742633437235,-500.0,0.00046575,120]
[356535522,1742633437245,-691.48,0.00046575,120]
[356535523,1742633437255,-500.0,0.00046575,120]
[356535524,1742633437264,-1714.0,0.00046575,120]
[356535525,1742633437274,-500.0,0.00046575,120]
[356535526,1742633437283,-500.0,0.00046575,120]
[356535527,1742633437293,-500.0,0.00046575,120]
[356535528,1742633437302,-1192.32,0.00046575,120]
[356535529,1742633437311,-500.0,0.00046575,120]
[356535530,1742633437320,-500.0,0.00046575,120]
[356535531,1742633437328,-500.0,0.00046575,120]
[356535532,1742633437338,-500.0,0.00046575,120]
[356535533,1742633437347,-1144.42,0.00046575,120]
[356535534,1742633437355,-500.0,0.00046575,120]
[356535535,1742633437364,-717.38,0.00046575,120]
[356535537,1742633437374,-1804.76,0.00046575,120]
[356535539,1742633437383,-1562.6,0.00046575,120]
[356535541,1742633437392,-235.26,0.00046575,7]
[356535542,1742633437401,-500.0,0.00046575,120]
[356535543,1742633437410,-5995.22,0.00046575,120]
[356535544,1742633437419,-500.0,0.00046575,120]
[356535545,1742633437428,-943.85,0.00046575,120]
[356535546,1742633437438,-500.0,0.00046575,30]
[356535547,1742633437448,-1138.74,0.00046575,120]
[356535548,1742633437457,-500.0,0.00046575,120]
[356535549,1742633437467,-2194.74,0.00046575,120]
[356535550,1742633437476,-687.19,0.00046575,120]
[356535551,1742633437485,-500.0,0.00046575,120]
[356535552,1742633437495,-500.0,0.00046575,120]
[356535553,1742633437504,-500.0,0.00046575,120]
[356535554,1742633437513,-945.71,0.00046575,120]
[356535555,1742633437522,-967.54,0.00046575,120]
[356535556,1742633437531,-500.0,0.00046575,120]
[356535557,1742633437540,-795.07,0.00046575,120]
[356535558,1742633437550,-924.92,0.00046575,120]
[356535559,1742633437559,-500.0,0.00046575,120]
[356535560,1742633437568,-500.0,0.00046575,120]
[356535561,1742633437578,-861.17,0.00046575,120]
[356535562,1742633437587,-500.0,0.00046575,120]
[356535563,1742633437596,-638.25,0.00046575,120]
[356535564,1742633437605,-500.0,0.00046575,120]
[356535565,1742633437614,-2435.46,0.00046575,120]
[356535566,1742633437623,-1550.51,0.00046575,7]
[356535567,1742633437632,-500.0,0.00046575,120]
[356535568,1742633437642,-500.0,0.00046575,120]
[356535569,1742633437651,-500.0,0.00046575,120]
[356535570,1742633437661,-151.0,0.00046575,14]
[356535571,1742633437670,-151.0,0.00046575,14]
[356535572,1742633437681,-151.0,0.00046575,14]
[356535573,1742633437692,-151.0,0.00046575,14]
[356535574,1742633437702,-151.0,0.00046575,14]
[356535575,1742633437712,-602.45,0.00046575,120]
[356535576,1742633437721,-525.67,0.00046575,120]
[356535577,1742633437730,-624.45526903,0.00046575,120]
[356535578,1742633437739,-500.0,0.00046575,120]
[356535579,1742633437749,-2084.92,0.00046575,120]
[356535580,1742633437758,-671.27,0.00046575,120]
[356535581,1742633437768,-500.0,0.00046575,120]
[356535582,1742633437777,-725.86,0.00046575,120]
[356535583,1742633437787,-693.67,0.00046575,120]
[356535584,1742633437796,-1288.64,0.00046575,120]
[356535585,1742633437806,-669.86,0.00046575,120]
[356535586,1742633437815,-500.0,0.00046575,120]
[356535587,1742633437824,-910.06,0.00046575,120]
[356535588,1742633437834,-3857.33,0.00046575,120]
[356535589,1742633437843,-500.0,0.00046575,120]
[356535590,1742633437853,-1264.0,0.00046575,120]
[356535591,1742633437862,-595.24,0.00046575,120]
[356535592,1742633437872,-1289.29,0.00046575,120]
[356535593,1742633437881,-500.0,0.00046575,120]
[356535594,1742633437890,-1662.29,0.00046575,120]
[356535595,1742633437899,-500.0,0.00046575,120]
[356535596,1742633437909,-500.0,0.00046575,120]
[356535597,1742633437918,-740.27,0.00046575,120]
[356535598,1742633437927,-1293.24,0.00046575,120]
[356535599,1742633437936,-573.51,0.00046575,120]
[356535600,1742633437945,-500.0,0.00046575,120]
[356535601,1742633437954,-500.0,0.00046575,120]
[356535602,1742633437963,-788.29,0.00046575,120]
[356535603,1742633437972,-1804.1,0.00046575,120]
[356535604,1742633437981,-619.53132571,0.00046575,120]
[356535605,1742633437991,-2187.64,0.00046575,120]
[356535606,1742633438000,-1043.74,0.00046575,120]
[356535607,1742633438009,-5783.32,0.00046575,120]
[356535608,1742633438018,-1000.0,0.00046575,120]
[356535609,1742633438028,-1072.22,0.00046575,120]
[356535610,1742633438038,-1393.79,0.00046575,120]
[356535611,1742633438047,-500.0,0.00046575,120]
[356535612,1742633438057,-1970.81,0.00046575,120]
[356535613,1742633438066,-500.0,0.00046575,120]
[356535614,1742633438075,-685.7,0.00046575,120]
[356535615,1742633438084,-952.67,0.00046575,120]
[356535616,1742633438094,-500.0,0.00046575,120]
[356535617,1742633438103,-500.0,0.00046575,120]
[356535618,1742633438112,-2290.19,0.00046575,100]
[356535620,1742633438121,-1812.39,0.00046575,120]
[356535627,1742633438183,-500.0,0.00046575,120]
[356535629,1742633438192,-737.56,0.00046575,120]
[356535631,1742633438201,-509.01,0.00046575,120]
[356535633,1742633438210,-500.0,0.00046575,120]
[356535634,1742633438219,-573.95,0.00046575,120]
[356535635,1742633438228,-544.41,0.00046575,120]
[356535636,1742633438237,-500.0,0.00046575,120]
[356535637,1742633438246,-500.0,0.00046575,120]
[356535638,1742633438256,-1984.95,0.00046575,120]
[356535639,1742633438264,-792.21,0.00046575,120]
[356535640,1742633438274,-1111.32,0.00046575,120]
[356535641,1742633438283,-669.56,0.00046575,120]
[356535642,1742633438292,-2122.79,0.00046575,120]
[356535643,1742633438301,-532.41,0.00046575,120]
[356535644,1742633438311,-500.0,0.00046575,120]
[356535645,1742633438320,-500.0,0.00046575,120]
[356535646,1742633438330,-500.0,0.00046575,120]
[356535647,1742633438339,-1190.31,0.00046575,120]
[356535648,1742633438349,-500.0,0.00046575,120]
[356535649,1742633438360,-1008.94,0.00046575,120]
[356535650,1742633438369,-648.44,0.00046575,120]
[356535651,1742633438378,-3221.39,0.00046575,120]
[356535652,1742633438387,-500.0,0.00046575,120]
[356535653,1742633438396,-1472.24,0.00046575,120]
[356535654,1742633438406,-500.0,0.00046575,120]
[356535655,1742633438415,-825.81,0.00046575,120]
[356535656,1742633438424,-500.0,0.00046575,120]
[356535657,1742633438433,-500.0,0.00046575,120]
[356535658,1742633438442,-500.0,0.00046575,120]
[356535659,1742633438451,-1270.36,0.00046575,120]
[356535660,1742633438461,-605.68,0.00046575,120]
[356535661,1742633438470,-762.11,0.00046575,120]
[356535662,1742633438479,-576.25,0.00046575,120]
[356535663,1742633438488,-3741.48,0.00046575,120]
[356535664,1742633438497,-714.17,0.00046575,120]
[356535665,1742633438506,-1203.09,0.00046575,120]
[356535666,1742633438515,-500.0,0.00046575,120]
[356535667,1742633438524,-1809.47,0.00046575,120]
[356535668,1742633438532,-1121.8,0.00046575,120]
[356535669,1742633438542,-1235.17,0.00046575,120]
[356535670,1742633438551,-500.0,0.00046575,120]
[356535671,1742633438561,-500.0,0.00046575,120]
[356535672,1742633438570,-500.0,0.00046575,120]
[356535673,1742633438579,-500.0,0.00046575,120]
[356535674,1742633438588,-500.0,0.00046575,120]
[356535675,1742633438598,-544.97,0.00046575,120]
[356535676,1742633438607,-500.0,0.00046575,120]
[356535677,1742633438616,-553.42,0.00046575,120]
[356535678,1742633438626,-576.48,0.00046575,120]
[356535679,1742633438635,-677.4,0.00046575,120]
[356535680,1742633438645,-1644.85,0.00046575,120]
[356535681,1742633438654,-791.3,0.00046575,120]
[356535682,1742633438664,-500.0,0.00046575,120]
[356535683,1742633438674,-1221.23,0.00046575,120]
[356535684,1742633438688,-1173.28,0.00046575,120]